{"text_format":"3","workbook":"xlsx","n_sheets":3,"sheets":["Лист назначений","Лист динамического наблюдения","Лист ОЦЕНКИ БОЛИ "],"not_rendered":{"charts":1,"images":1},"read":"whole","date_system":"1900"}

{"sheet":"Лист назначений","index":0,"n_rows":30,"n_cols":14,"rows_kept":30,"merged":[[0,0,0,5],[0,6,0,10],[0,12,0,13],[1,0,1,5],[1,6,1,10],[1,12,1,13],[3,0,3,13],[4,0,4,13],[6,1,6,9],[6,10,6,11],[6,12,6,13],[8,1,8,13],[10,1,10,13],[11,6,11,10],[11,12,11,13],[13,0,15,0],[13,1,15,1],[13,2,15,2],[13,3,13,12],[13,13,15,13]]}
["Центр сосудистой и пластической хирургии",{"$nulls":5},"Оториноларингологии",{"$nulls":5},1241]
["наименование больницы",{"$nulls":5},"отделение",{"$nulls":5},"палата"]
[]
["ЛИСТ ВРАЧЕБНЫХ НАЗНАЧЕНИЙ"]
["к медитцинской карте стационарного больного №0214"]
[]
["Фамилия, имя, отчество пациента","Фишер Анастасия Александровна",{"$nulls":8},"Дата рождения:",null,{"$f":"G15-9150","v":"1998-03-03"}]
[]
["Диагноз (основное заболевание)","Ринопластика (послеоперационный период)"]
[]
["Аллергические реакции на лекарственные препараты, пищевая аллергия или иные виды непереносимости в анамнезе, с указанием типа и вида аллергической реакции:","не выявлено"]
[]
[]
["Назначение","Дата назначения","Дата отмены","Отметка об исполнении назначения лекарственного препарата, лечебного питания, режима\n(дата и время исполнения, подпись медицинского работника ответственного за исполнение)",{"$nulls":9},"Сведения о реакции наприменения\n(при наличии)"]
[{"$nulls":3},{"$f":"G15-1","v":"2023-03-21"},{"$f":"G15-1","v":"2023-03-21"},{"$f":"G15-1","v":"2023-03-21"},{"$f":"TODAY()","v":"2023-03-22"}]
[{"$nulls":3},"УТРО","ДЕНЬ","ВЕЧЕР","УТРО"]
[" Режим ОБЩИЙ",{"$f":"D15","v":"2023-03-21"}]
[" Стол №15",{"$f":"B17","v":"2023-03-21"}]
["Sol. Heparini 5000 МЕ 1 ml. п/к 1р/день","2023-03-21",{"$f":"G15","v":"2023-03-22"}]
["Cyclophosphamidi 200мг +Sol. Natrii chloridi 0,9% isotonici -500 мл в/в капельно",{"$f":"B19","v":"2023-03-21"}]
["Sol. Ketorolaci 30 мг/мл – 1мл внутримышечно при боли","2023-03-21",null,"Захаров З.В.","Шарипова А.Н.","Захаров З.В.","Шарипова А.Н."]
["Контроль температуры тела 2 р/ день","2023-03-21",null,"Захаров З.В.","Шарипова А.Н.","Захаров З.В."]
["Пульсоксиметрия 2 раза в день","2023-03-21",null,"Захаров З.В.","Шарипова А.Н.","Захаров З.В."]
["Контроль ЧДД 2 раза в день","2023-03-21",null,"Захаров З.В.","Шарипова А.Н.","Захаров З.В."]
["Контроль АД 2 раза в день","2023-03-21",null,"Захаров З.В.","Шарипова А.Н.","Захаров З.В."]
["Оксигенотерапия 2  л/мин при SPO2 ниже 95% и ЧДД >25 в мин.",{"$f":"G15","v":"2023-03-22"}]
[]
[]
[]
["Отметка о проверке выполнения назначений лечащим врачом"]

{"sheet":"Лист динамического наблюдения","index":1,"n_rows":41,"n_cols":21,"rows_kept":41,"merged":[[1,0,1,21],[2,0,2,21],[4,2,4,13],[4,17,4,19]]}
[]
["ЛИСТ РЕГИСТРАЦИИ ПОКАЗАТЕЛЕЙ ЖИЗНЕННО ВАЖНЫЙ ФУНКЦИЙ"]
[{"$f":"'Лист назначений'!A5:N5","v":"к медитцинской карте стационарного больного №0214"}]
[]
[null,"Фамилия, имя, отчество пациента",{"$f":"'Лист назначений'!B7","v":"Фишер Анастасия Александровна"},{"$nulls":13},"Дата рождения: ",{"$f":"'Лист назначений'!M7","v":"1998-03-03"},null,null,"Рост"]
[]
[null,"Сутки пребывания"]
[]
[null,"Дата"]
[]
[null,"Время"]
[]
[null,"Температура тела, оС"]
{"$rows_empty":9}
[null,"Артериальное давление"]
[]
[null,"Пульс"]
[]
[null,"Частота дыхания"]
[]
[null,"SpO2, %"]
[]
[null,"Масса тела (кг)"]
[]
[null,"Выпито жидкости (мл)"]
[]
[null,"Введено жидкости (мл)\nпарентерально"]
[]
[null,"Суточный объем мочи (мл)"]
[]
[null,"Стул"]
[]
[null,"Подпись \nмедицинской сестры"]

{"sheet":"Лист ОЦЕНКИ БОЛИ ","index":2,"n_rows":42,"n_cols":20,"rows_kept":42,"merged":[[1,0,1,22],[2,0,2,22],[4,1,4,15],[4,16,4,18],[4,19,4,22],[6,1,6,22],[8,1,8,2],[9,1,9,2],[10,1,10,22],[11,1,21,1],[23,1,23,2],[24,1,24,22],[26,1,26,2],[27,0,48,0],[27,1,27,22],[28,1,28,22],[30,1,30,5],[39,1,39,2],[42,1,42,22],[43,1,43,22],[44,1,44,22],[45,1,45,22],[46,1,46,22],[47,1,47,22],[48,1,48,22]]}
[]
["ЛИСТ ОЦЕНКИ БОЛИ"]
[{"$f":"'Лист назначений'!A5:N5","v":"к медитцинской карте стационарного больного №0214"}]
[]
["Фамилия, имя, отчество пациента",{"$f":"'Лист назначений'!B7:J7","v":"Фишер Анастасия Александровна"},{"$nulls":14},"Дата рождения:",null,null,{"$f":"'Лист назначений'!M7","v":"1998-03-03"}]
[]
["Диагноз",{"$f":"'Лист назначений'!B9:N9","v":"Ринопластика (послеоперационный период)"}]
[]
[null,"Дата"]
[null,"Время"]
[]
[null,"Балл по Шкале\n(поставить крестик - \"Х\")",10]
[null,null,9]
[null,null,8]
[null,null,7]
[null,null,6]
[null,null,5]
[null,null,4]
[null,null,3]
[null,null,2]
[null,null,1]
[null,null,0]
[]
[null,"Характер боли1"]
[null," Ж  - жгучая / Кол -колющая / Н - ноющая / О - острая / П - постоянная / Пл - пульсирующая / Р - режущая / \n Стр - стреляющая / Сх - схваткообразная / Туп - тупая / Тян - тянущая / др - другой характер (аказать в комментариях)"]
[]
[null,"Оказана помощь2"]
[null,"Медикаментозные: НР -наркотический / НН - ненаркотический / СП - спазмолитик / АН - анестетик / Др. - другое (указать в комментариях)"]
[null,"Немедикаментозные: П - психологическое обучение / У - упражнения, массаж / И - иммобилизация / Др - другое (указать в комментариях)"]
[]
[null,"Побочные эффекты \n(при наличии поставть крестик - \"Х\")"]
[]
[null,null,"аллергия"]
[null,null,"привыкание"]
[null,null,"тошнота/рвота"]
[null,null,"боль в желудке"]
[null,null,"запор"]
[null,null,"другие (указать)"]
[]
[null,"Подпись или инициалы медицинской сестры"]
[]
[null,"Комментарии"]